[Event "Early-Titled-Tuesday-Blitz-February-06-2024"]
[Site "Chess.com"]
[Date "2024.02.06"]
[Round "1"]
[White "DAVIDHDZSTS"]
[Black "valeriocarnicelli"]
[Result "0-1"]
[WhiteElo "1933"]
[BlackElo "2536"]
[TimeControl "180+1"]
[EndTime "8:04:24 PST"]
[Termination "valeriocarnicelli won by checkmate"]

1. d4 {[%clk 0:02:58.4]} 1... Nf6 {[%clk 0:02:59.7]} 2. Nc3 {[%clk 0:02:58.8]}
2... e6 {[%clk 0:02:59.9]} 3. Bf4 {[%clk 0:02:59.1]} 3... d5 {[%clk 0:02:59.4]}
4. Nb5 {[%clk 0:02:58.8]} 4... Na6 {[%clk 0:02:58.9]} 5. e3 {[%clk 0:02:58.4]}
5... Be7 {[%clk 0:02:57.1]} 6. Nf3 {[%clk 0:02:45.8]} 6... O-O {[%clk
0:02:55.8]} 7. Bd3 {[%clk 0:02:43]} 7... Ne4 {[%clk 0:02:53.8]} 8. Nd2 {[%clk
0:02:36.8]} 8... c6 {[%clk 0:02:52.1]} 9. Nc3 {[%clk 0:02:33.2]} 9... f5 {[%clk
0:02:49.4]} 10. Bxa6 {[%clk 0:02:31.6]} 10... bxa6 {[%clk 0:02:49]} 11. Ne2
{[%clk 0:02:30.2]} 11... a5 {[%clk 0:02:47.9]} 12. f3 {[%clk 0:02:28.3]} 12...
Nf6 {[%clk 0:02:44.8]} 13. O-O {[%clk 0:02:28.2]} 13... Ba6 {[%clk 0:02:44.2]}
14. Re1 {[%clk 0:02:27.7]} 14... c5 {[%clk 0:02:41.5]} 15. c3 {[%clk 0:02:26.4]}
15... Qb6 {[%clk 0:02:37.4]} 16. Rb1 {[%clk 0:02:26]} 16... Bd3 {[%clk
0:02:36.1]} 17. Ra1 {[%clk 0:02:23.1]} 17... c4 {[%clk 0:02:34.2]} 18. b3 {[%clk
0:02:22]} 18... Ba3 {[%clk 0:02:27.1]} 19. Nc1 {[%clk 0:02:19.5]} 19... Bb2
{[%clk 0:02:21]} 20. Nxd3 {[%clk 0:02:13.7]} 20... cxd3 {[%clk 0:02:21.5]} 21.
Rb1 {[%clk 0:02:09.2]} 21... Bxc3 {[%clk 0:02:21.9]} 22. Rf1 {[%clk 0:02:08.2]}
22... Rfc8 {[%clk 0:02:19.3]} 23. a3 {[%clk 0:02:02.9]} 23... Rc6 {[%clk
0:02:15.2]} 24. Rf2 {[%clk 0:02:02.2]} 24... Rac8 {[%clk 0:02:14.1]} 25. b4
{[%clk 0:02:02.3]} 25... axb4 {[%clk 0:02:11.7]} 26. axb4 {[%clk 0:02:03.2]}
26... Bxb4 {[%clk 0:02:11.2]} 27. Qb3 {[%clk 0:02:02.2]} 27... Rc1+ {[%clk
0:02:08.5]} 28. Nf1 {[%clk 0:01:40]} 28... d2 {[%clk 0:02:06.2]} 29. Rxd2 {[%clk
0:01:34.3]} 29... Bxd2 {[%clk 0:02:01.1]} 30. Qxb6 {[%clk 0:01:26.2]} 30... axb6
{[%clk 0:02:01.7]} 31. Rxb6 {[%clk 0:01:20.8]} 31... Nh5 {[%clk 0:02:00.5]} 32.
Be5 {[%clk 0:01:17.6]} 32... Bxe3+ {[%clk 0:01:59.3]} 33. Kh1 {[%clk 0:01:15.7]}
33... Rxf1# {[%clk 0:01:59.5]} 0-1

[Event "Early-Titled-Tuesday-Blitz-February-06-2024"]
[Site "Chess.com"]
[Date "2024.02.06"]
[Round "1"]
[White "FormerProdigy"]
[Black "JonasEilenberg"]
[Result "0-1"]
[WhiteElo "3021"]
[BlackElo "2535"]
[TimeControl "180+1"]
[EndTime "8:04:26 PST"]
[Termination "JonasEilenberg won by resignation"]

1. c4 {[%clk 0:03:00.9]} 1... e6 {[%clk 0:02:59.7]} 2. g3 {[%clk 0:02:59.6]}
2... d5 {[%clk 0:03:00.2]} 3. Bg2 {[%clk 0:03:00.3]} 3... dxc4 {[%clk
0:03:00.1]} 4. Qa4+ {[%clk 0:02:59.5]} 4... Nd7 {[%clk 0:03:00]} 5. Nf3 {[%clk
0:02:57.1]} 5... a6 {[%clk 0:03:00.1]} 6. Qxc4 {[%clk 0:02:56.8]} 6... b5 {[%clk
0:03:00.5]} 7. Qc2 {[%clk 0:02:56.9]} 7... Bb7 {[%clk 0:03:01.1]} 8. O-O {[%clk
0:02:56.2]} 8... Ngf6 {[%clk 0:03:01.4]} 9. b3 {[%clk 0:02:55.9]} 9... c5 {[%clk
0:03:01.6]} 10. Bb2 {[%clk 0:02:56.4]} 10... Be7 {[%clk 0:03:02.2]} 11. d3
{[%clk 0:02:56.8]} 11... O-O {[%clk 0:03:02.7]} 12. Nbd2 {[%clk 0:02:57.1]}
12... Rc8 {[%clk 0:03:03.3]} 13. Rac1 {[%clk 0:02:57.2]} 13... Qb6 {[%clk
0:03:03.5]} 14. Rfd1 {[%clk 0:02:56.2]} 14... Rfd8 {[%clk 0:03:03.8]} 15. Qb1
{[%clk 0:02:56.3]} 15... Nb8 {[%clk 0:03:00.1]} 16. Ne5 {[%clk 0:02:51]} 16...
Bxg2 {[%clk 0:02:58.4]} 17. Kxg2 {[%clk 0:02:51.9]} 17... Nc6 {[%clk 0:02:48.7]}
18. Ndf3 {[%clk 0:02:51.3]} 18... Nd5 {[%clk 0:02:41.7]} 19. Qa1 {[%clk
0:02:42.7]} 19... Bf6 {[%clk 0:02:36.8]} 20. Nxc6 {[%clk 0:02:40.6]} 20... Qxc6
{[%clk 0:02:34.5]} 21. Bxf6 {[%clk 0:02:38.9]} 21... Nxf6 {[%clk 0:02:32.3]} 22.
Kg1 {[%clk 0:02:21.1]} 22... h6 {[%clk 0:02:21.1]} 23. d4 {[%clk 0:02:10.1]}
23... Qb6 {[%clk 0:02:17.2]} 24. Rxc5 {[%clk 0:02:00]} 24... Rxc5 {[%clk
0:02:12.8]} 25. dxc5 {[%clk 0:02:00.9]} 25... Rxd1+ {[%clk 0:02:13.2]} 26. Qxd1
{[%clk 0:02:01.8]} 26... Qxc5 {[%clk 0:02:13.9]} 27. Qd8+ {[%clk 0:02:02]} 27...
Kh7 {[%clk 0:02:13.4]} 28. Qd3+ {[%clk 0:02:02.9]} 28... Kg8 {[%clk 0:02:02.7]}
29. Kg2 {[%clk 0:02:02.7]} 29... Nd5 {[%clk 0:02:00]} 30. Ne5 {[%clk 0:01:58.2]}
30... Qc3 {[%clk 0:01:40]} 31. Qe4 {[%clk 0:01:50.9]} 31... f5 {[%clk 0:01:37]}
32. Qh4 {[%clk 0:01:41.9]} 32... Qxe5 {[%clk 0:01:36.7]} 33. Qd8+ {[%clk
0:01:42.5]} 33... Kh7 {[%clk 0:01:36.6]} 34. e3 {[%clk 0:01:43.4]} 34... Qe4+
{[%clk 0:01:36.3]} 35. Kg1 {[%clk 0:01:43.5]} 35... Qb1+ {[%clk 0:01:33.7]} 36.
Kg2 {[%clk 0:01:44]} 36... Qxa2 {[%clk 0:01:34.2]} 0-1

[Event "Early-Titled-Tuesday-Blitz-February-06-2024"]
[Site "Chess.com"]
[Date "2024.02.06"]
[Round "1"]
[White "Tesla37"]
[Black "ImportedItalianMaple"]
[Result "1-0"]
[WhiteElo "2863"]
[BlackElo "2471"]
[TimeControl "180+1"]
[EndTime "8:04:30 PST"]
[Termination "Tesla37 won by resignation"]

1. e4 {[%clk 0:03:00.9]} 1... g6 {[%clk 0:02:56.3]} 2. d4 {[%clk 0:03:00]} 2...
Bg7 {[%clk 0:02:56.7]} 3. Nc3 {[%clk 0:03:00.4]} 3... d5 {[%clk 0:02:56.8]} 4.
exd5 {[%clk 0:02:59.6]} 4... Nf6 {[%clk 0:02:57.1]} 5. Bb5+ {[%clk 0:02:59.2]}
5... Nbd7 {[%clk 0:02:56.7]} 6. Nge2 {[%clk 0:02:58.2]} 6... O-O {[%clk
0:02:56.3]} 7. Nf4 {[%clk 0:02:58.1]} 7... Nb6 {[%clk 0:02:55.7]} 8. Qf3 {[%clk
0:02:57.9]} 8... Bg4 {[%clk 0:02:51.9]} 9. Qg3 {[%clk 0:02:57.8]} 9... Bf5
{[%clk 0:02:52.3]} 10. Be3 {[%clk 0:02:51.2]} 10... Nfxd5 {[%clk 0:02:47.2]} 11.
Ncxd5 {[%clk 0:02:50.8]} 11... Nxd5 {[%clk 0:02:47.7]} 12. Nxd5 {[%clk
0:02:50.6]} 12... Qxd5 {[%clk 0:02:48.3]} 13. c4 {[%clk 0:02:50.7]} 13... Qd6
{[%clk 0:02:35.9]} 14. O-O {[%clk 0:02:47.5]} 14... c6 {[%clk 0:02:21.5]} 15.
Ba4 {[%clk 0:02:46.5]} 15... Rad8 {[%clk 0:02:20.9]} 16. Rfd1 {[%clk 0:02:44.1]}
16... Qb4 {[%clk 0:02:00.4]} 17. Bb3 {[%clk 0:02:42.9]} 17... a5 {[%clk
0:01:56.6]} 18. Bd2 {[%clk 0:02:35.2]} 18... Qb6 {[%clk 0:01:54.6]} 19. c5
{[%clk 0:02:35.1]} 19... Qb5 {[%clk 0:01:50]} 20. a4 {[%clk 0:02:33.6]} 20...
Qa6 {[%clk 0:01:49.7]} 21. Bc3 {[%clk 0:02:31.5]} 21... e6 {[%clk 0:01:47.6]}
22. Rd2 {[%clk 0:02:27]} 22... Be4 {[%clk 0:01:46]} 23. Rad1 {[%clk 0:02:25.1]}
23... Bd5 {[%clk 0:01:46.4]} 24. Bc2 {[%clk 0:02:25]} 24... b5 {[%clk
0:01:41.9]} 25. Bd3 {[%clk 0:02:21.9]} 25... Qb7 {[%clk 0:01:37.5]} 26. axb5
{[%clk 0:02:18.5]} 26... cxb5 {[%clk 0:01:34.6]} 27. Bxa5 {[%clk 0:02:18.4]}
27... Ra8 {[%clk 0:01:35.3]} 28. b4 {[%clk 0:02:17.6]} 28... Bxd4 {[%clk
0:01:27.7]} 29. Bxg6 {[%clk 0:02:15.7]} 29... Bxf2+ {[%clk 0:01:24.1]} 30. Rxf2
{[%clk 0:02:15.2]} 30... hxg6 {[%clk 0:01:23.7]} 31. h4 {[%clk 0:02:13.5]} 31...
Be4 {[%clk 0:01:18]} 32. h5 {[%clk 0:02:10.1]} 32... Qe7 {[%clk 0:01:04.1]} 33.
h6 {[%clk 0:02:02.8]} 33... g5 {[%clk 0:01:02.6]} 34. Qe5 {[%clk 0:02:01.4]}
34... Bg6 {[%clk 0:01:00.9]} 1-0

[Event "Early-Titled-Tuesday-Blitz-February-06-2024"]
[Site "Chess.com"]
[Date "2024.02.06"]
[Round "1"]
[White "TheoSlade"]
[Black "kleinebeer98"]
[Result "0-1"]
[WhiteElo "2462"]
[BlackElo "2849"]
[TimeControl "180+1"]
[EndTime "8:04:35 PST"]
[Termination "kleinebeer98 won on time"]

1. d4 {[%clk 0:03:00.9]} 1... Nf6 {[%clk 0:02:59.4]} 2. c4 {[%clk 0:03:01.1]}
2... a6 {[%clk 0:03:00]} 3. Nc3 {[%clk 0:02:56.8]} 3... b5 {[%clk 0:03:00.3]} 4.
cxb5 {[%clk 0:02:55.8]} 4... axb5 {[%clk 0:03:01.2]} 5. Nxb5 {[%clk 0:02:56.4]}
5... e5 {[%clk 0:03:01.9]} 6. dxe5 {[%clk 0:02:52.7]} 6... Ne4 {[%clk
0:03:02.5]} 7. Qd4 {[%clk 0:02:23.9]} 7... Bb7 {[%clk 0:02:57.4]} 8. e3 {[%clk
0:02:13.3]} 8... Bc5 {[%clk 0:02:54.9]} 9. Qd3 {[%clk 0:02:07.3]} 9... O-O
{[%clk 0:02:49.1]} 10. Nf3 {[%clk 0:02:04.3]} 10... Na6 {[%clk 0:02:47.2]} 11.
Bd2 {[%clk 0:01:35.8]} 11... Nb4 {[%clk 0:02:45.3]} 12. Bxb4 {[%clk 0:01:28.7]}
12... Bxb4+ {[%clk 0:02:46.2]} 13. Nc3 {[%clk 0:01:29.1]} 13... Ra3 {[%clk
0:02:37]} 14. Rc1 {[%clk 0:01:16.5]} 14... Rxa2 {[%clk 0:02:36]} 15. Qb1 {[%clk
0:00:34.6]} 15... Qa8 {[%clk 0:02:34.8]} 16. Bd3 {[%clk 0:00:29.9]} 16... Nxc3
{[%clk 0:02:30.7]} 17. bxc3 {[%clk 0:00:28.9]} 17... Bxc3+ {[%clk 0:02:31.6]}
18. Kf1 {[%clk 0:00:24.5]} 18... g6 {[%clk 0:02:30]} 19. h4 {[%clk 0:00:10.2]}
19... Rb2 {[%clk 0:02:30.3]} 20. Qa1 {[%clk 0:00:07.2]} 20... Rxf2+ {[%clk
0:02:30.8]} 21. Kxf2 {[%clk 0:00:07.9]} 21... Bxa1 {[%clk 0:02:31.6]} 22. Rxa1
{[%clk 0:00:07.7]} 22... Qe8 {[%clk 0:02:31.1]} 23. h5 {[%clk 0:00:03.4]} 23...
Bxf3 {[%clk 0:02:31.4]} 24. gxf3 {[%clk 0:00:03]} 24... Qxe5 {[%clk 0:02:32]}
25. hxg6 {[%clk 0:00:02.7]} 25... fxg6 {[%clk 0:02:32.9]} 0-1

[Event "Early-Titled-Tuesday-Blitz-February-06-2024"]
[Site "Chess.com"]
[Date "2024.02.06"]
[Round "1"]
[White "AlexTruskavetsky"]
[Black "semchik73"]
[Result "1-0"]
[WhiteElo "2707"]
[BlackElo "2388"]
[TimeControl "180+1"]
[EndTime "8:04:36 PST"]
[Termination "AlexTruskavetsky won by resignation"]

1. d4 {[%clk 0:02:59.8]} 1... d5 {[%clk 0:02:59.8]} 2. c4 {[%clk 0:02:59.7]}
2... c6 {[%clk 0:03:00.3]} 3. Nf3 {[%clk 0:02:58.6]} 3... Nf6 {[%clk 0:03:00.6]}
4. e3 {[%clk 0:02:57.9]} 4... g6 {[%clk 0:03:00.4]} 5. Bd3 {[%clk 0:02:58]} 5...
Bg7 {[%clk 0:03:00.8]} 6. O-O {[%clk 0:02:58.1]} 6... O-O {[%clk 0:03:01]} 7. b3
{[%clk 0:02:58.4]} 7... Ne4 {[%clk 0:02:56.9]} 8. Bb2 {[%clk 0:02:58.5]} 8... f5
{[%clk 0:02:56.5]} 9. Ne5 {[%clk 0:02:56.4]} 9... Nd7 {[%clk 0:02:48.7]} 10. f3
{[%clk 0:02:55.7]} 10... Nxe5 {[%clk 0:02:44.9]} 11. dxe5 {[%clk 0:02:46.9]}
11... Nc5 {[%clk 0:02:44.6]} 12. Be2 {[%clk 0:02:46.8]} 12... dxc4 {[%clk
0:02:38.1]} 13. Bxc4+ {[%clk 0:02:46.8]} 13... Be6 {[%clk 0:02:37.4]} 14. Qe2
{[%clk 0:02:45.9]} 14... Bxc4 {[%clk 0:02:27.8]} 15. Qxc4+ {[%clk 0:02:46.8]}
15... Qd5 {[%clk 0:02:28.2]} 16. Qxd5+ {[%clk 0:02:45.3]} 16... cxd5 {[%clk
0:02:28.4]} 17. Rd1 {[%clk 0:02:43.3]} 17... e6 {[%clk 0:02:27.1]} 18. Bd4
{[%clk 0:02:40.2]} 18... Rac8 {[%clk 0:02:23.3]} 19. Nc3 {[%clk 0:02:40.2]}
19... f4 {[%clk 0:02:12.5]} 20. exf4 {[%clk 0:02:37.3]} 20... Rxf4 {[%clk
0:02:11.7]} 21. Rac1 {[%clk 0:02:37]} 21... Nd7 {[%clk 0:02:00.3]} 22. Ne2
{[%clk 0:02:36.4]} 22... Rff8 {[%clk 0:01:57.8]} 23. f4 {[%clk 0:02:36.2]} 23...
g5 {[%clk 0:01:50.4]} 24. g3 {[%clk 0:02:36.4]} 24... gxf4 {[%clk 0:01:50.4]}
25. Nxf4 {[%clk 0:02:36.5]} 25... Kf7 {[%clk 0:01:46.3]} 26. Rf1 {[%clk
0:02:31.5]} 26... Rxc1 {[%clk 0:01:43]} 27. Rxc1 {[%clk 0:02:31.5]} 27... Bxe5
{[%clk 0:01:40.3]} 28. Bxe5 {[%clk 0:02:31.6]} 28... Nxe5 {[%clk 0:01:40.7]} 29.
Rc7+ {[%clk 0:02:32.3]} 29... Kf6 {[%clk 0:01:37.9]} 30. Rxh7 {[%clk 0:02:31.2]}
30... d4 {[%clk 0:01:29.7]} 31. Rh6+ {[%clk 0:02:27.9]} 31... Kf5 {[%clk
0:01:27.1]} 32. Rh5+ {[%clk 0:02:28.1]} 32... Ke4 {[%clk 0:01:16.3]} 33. Rxe5+
{[%clk 0:02:28.1]} 33... Kxe5 {[%clk 0:01:16.3]} 34. Ng6+ {[%clk 0:02:28.6]}
34... Ke4 {[%clk 0:01:14.1]} 35. Nxf8 {[%clk 0:02:29.5]} 35... Ke3 {[%clk
0:01:11.4]} 36. Kf1 {[%clk 0:02:26.9]} 36... e5 {[%clk 0:01:00]} 37. Nd7 {[%clk
0:02:27.1]} 37... d3 {[%clk 0:00:51.2]} 38. Nxe5 {[%clk 0:02:26.4]} 38... d2
{[%clk 0:00:47.8]} 39. Nc4+ {[%clk 0:02:26.6]} 1-0

[Event "Early-Titled-Tuesday-Blitz-February-06-2024"]
[Site "Chess.com"]
[Date "2024.02.06"]
[Round "1"]
[White "GelmanAlexander"]
[Black "andrzej"]
[Result "1-0"]
[WhiteElo "2795"]
[BlackElo "2439"]
[TimeControl "180+1"]
[EndTime "8:04:46 PST"]
[Termination "GelmanAlexander won by resignation"]

1. c4 {[%clk 0:03:00.9]} 1... e6 {[%clk 0:03:00]} 2. d3 {[%clk 0:03:00.2]} 2...
d5 {[%clk 0:02:59.7]} 3. Nd2 {[%clk 0:03:00.7]} 3... Nf6 {[%clk 0:02:54.6]} 4.
Ngf3 {[%clk 0:03:01.2]} 4... Be7 {[%clk 0:02:51.1]} 5. e3 {[%clk 0:03:01.4]}
5... O-O {[%clk 0:02:51.1]} 6. b3 {[%clk 0:03:01.6]} 6... b6 {[%clk 0:02:48.2]}
7. Bb2 {[%clk 0:03:01.9]} 7... Bb7 {[%clk 0:02:48.4]} 8. Rg1 {[%clk 0:03:02]}
8... Nbd7 {[%clk 0:02:29.3]} 9. g4 {[%clk 0:03:02.1]} 9... dxc4 {[%clk
0:02:18.9]} 10. bxc4 {[%clk 0:03:01.4]} 10... Nc5 {[%clk 0:02:17.5]} 11. Qc2
{[%clk 0:03:01.2]} 11... Bc6 {[%clk 0:01:44.3]} 12. g5 {[%clk 0:02:59.4]} 12...
Nh5 {[%clk 0:01:28.5]} 13. d4 {[%clk 0:02:53.8]} 13... Nd7 {[%clk 0:01:24.8]}
14. Bd3 {[%clk 0:02:45.5]} 14... f5 {[%clk 0:01:14.6]} 15. gxf6 {[%clk
0:02:39.7]} 15... Nhxf6 {[%clk 0:01:14.6]} 16. Ng5 {[%clk 0:02:37.2]} 16... Bb4
{[%clk 0:00:44.3]} 17. Nxe6 {[%clk 0:02:31.1]} 17... Qe7 {[%clk 0:00:30.5]} 18.
d5 {[%clk 0:02:30.9]} 18... Rf7 {[%clk 0:00:23.5]} 19. dxc6 {[%clk 0:02:25.4]}
19... Qxe6 {[%clk 0:00:20.8]} 20. cxd7 {[%clk 0:02:25.8]} 20... Rxd7 {[%clk
0:00:18.1]} 21. O-O-O {[%clk 0:02:24.9]} 21... Rad8 {[%clk 0:00:17.9]} 22. Bf5
{[%clk 0:02:17.7]} 22... Qe7 {[%clk 0:00:14.2]} 23. Bxd7 {[%clk 0:02:17.7]}
23... Rxd7 {[%clk 0:00:15.1]} 24. Nf3 {[%clk 0:02:13.3]} 1-0

[Event "Early-Titled-Tuesday-Blitz-February-06-2024"]
[Site "Chess.com"]
[Date "2024.02.06"]
[Round "1"]
[White "Zohid6"]
[Black "tusplingher"]
[Result "1-0"]
[WhiteElo "2866"]
[BlackElo "2472"]
[TimeControl "180+1"]
[EndTime "8:04:49 PST"]
[Termination "Zohid6 won by resignation"]

1. e4 {[%clk 0:03:00.9]} 1... c5 {[%clk 0:02:59.6]} 2. Nf3 {[%clk 0:03:00.7]}
2... d6 {[%clk 0:02:59.4]} 3. Bb5+ {[%clk 0:03:00]} 3... Bd7 {[%clk 0:02:59.1]}
4. Bxd7+ {[%clk 0:02:59.1]} 4... Qxd7 {[%clk 0:02:57.9]} 5. c4 {[%clk
0:02:59.6]} 5... e5 {[%clk 0:02:56]} 6. Nc3 {[%clk 0:02:58.5]} 6... Be7 {[%clk
0:02:55.8]} 7. O-O {[%clk 0:02:58.1]} 7... Bd8 {[%clk 0:02:55.7]} 8. d3 {[%clk
0:02:58.7]} 8... Ne7 {[%clk 0:02:56.1]} 9. a3 {[%clk 0:02:58.8]} 9... O-O {[%clk
0:02:55]} 10. b4 {[%clk 0:02:58.8]} 10... Nbc6 {[%clk 0:02:52.6]} 11. Rb1 {[%clk
0:02:52.2]} 11... Nd4 {[%clk 0:02:46.6]} 12. Nxd4 {[%clk 0:02:51.5]} 12... cxd4
{[%clk 0:02:45.7]} 13. Nd5 {[%clk 0:02:51]} 13... Nxd5 {[%clk 0:02:45.3]} 14.
cxd5 {[%clk 0:02:51.9]} 14... a5 {[%clk 0:02:43.6]} 15. Bd2 {[%clk 0:02:50.2]}
15... axb4 {[%clk 0:02:43.1]} 16. Bxb4 {[%clk 0:02:51.1]} 16... Bb6 {[%clk
0:02:41.7]} 17. Qb3 {[%clk 0:02:48.8]} 17... Ra6 {[%clk 0:02:41.5]} 18. Rfc1
{[%clk 0:02:48.3]} 18... Rc8 {[%clk 0:02:41.4]} 19. Rxc8+ {[%clk 0:02:45.2]}
19... Qxc8 {[%clk 0:02:41.7]} 20. Bxd6 {[%clk 0:02:41.2]} 20... f6 {[%clk
0:02:07.7]} 21. Be7 {[%clk 0:02:28.2]} 21... Kf7 {[%clk 0:01:49.9]} 22. d6+
{[%clk 0:01:58.6]} 22... Qe6 {[%clk 0:01:49.1]} 23. Qb5 {[%clk 0:01:58.9]} 23...
Qa2 {[%clk 0:01:28.4]} 24. Rf1 {[%clk 0:01:58.2]} 24... Qc2 {[%clk 0:01:07.3]}
25. Qd5+ {[%clk 0:01:56.1]} 25... Ke8 {[%clk 0:01:07.3]} 26. Qe6 {[%clk
0:01:45.6]} 1-0

[Event "Early-Titled-Tuesday-Blitz-February-06-2024"]
[Site "Chess.com"]
[Date "2024.02.06"]
[Round "1"]
[White "yosephtaher"]
[Black "Actuary44"]
[Result "1-0"]
[WhiteElo "2884"]
[BlackElo "2483"]
[TimeControl "180+1"]
[EndTime "8:04:50 PST"]
[Termination "yosephtaher won by resignation"]

1. d4 {[%clk 0:03:00.9]} 1... Nf6 {[%clk 0:02:59.8]} 2. Nc3 {[%clk 0:03:01.3]}
2... d5 {[%clk 0:02:53.9]} 3. Bf4 {[%clk 0:03:00.8]} 3... g6 {[%clk 0:02:51.3]}
4. e3 {[%clk 0:02:59.8]} 4... Bg7 {[%clk 0:02:51.4]} 5. h4 {[%clk 0:02:59.8]}
5... O-O {[%clk 0:02:49.6]} 6. h5 {[%clk 0:03:00]} 6... Nxh5 {[%clk 0:02:48.8]}
7. Rxh5 {[%clk 0:02:59.8]} 7... gxh5 {[%clk 0:02:49.7]} 8. Qxh5 {[%clk
0:03:00.3]} 8... f5 {[%clk 0:02:34.4]} 9. Nf3 {[%clk 0:02:59.4]} 9... Qe8 {[%clk
0:02:31.1]} 10. Qxe8 {[%clk 0:02:58.1]} 10... Rxe8 {[%clk 0:02:31]} 11. Nxd5
{[%clk 0:02:59]} 11... e5 {[%clk 0:01:46.7]} 12. dxe5 {[%clk 0:02:58.8]} 12...
Bd7 {[%clk 0:01:31.7]} 13. Nxc7 {[%clk 0:02:59.3]} 13... Nc6 {[%clk 0:01:30.4]}
14. Bc4+ {[%clk 0:02:59.5]} 14... Kf8 {[%clk 0:01:27.6]} 15. Nxa8 {[%clk
0:03:00.1]} 15... Rxa8 {[%clk 0:01:27.6]} 16. O-O-O {[%clk 0:03:00.6]} 16... Ke8
{[%clk 0:01:23.5]} 17. Rh1 {[%clk 0:02:58.6]} 17... Rc8 {[%clk 0:01:16.5]} 18.
Rxh7 {[%clk 0:02:57.9]} 18... Kf8 {[%clk 0:01:14]} 19. Bh6 {[%clk 0:02:56.1]}
19... Bxh6 {[%clk 0:01:13.5]} 20. Rxd7 {[%clk 0:02:54.8]} 20... Nb4 {[%clk
0:01:09.8]} 21. Bb3 {[%clk 0:02:52.8]} 21... a5 {[%clk 0:01:04.6]} 22. Rxb7
{[%clk 0:02:52.8]} 22... Nd3+ {[%clk 0:01:03.7]} 23. Kd2 {[%clk 0:02:50]} 23...
Nxf2 {[%clk 0:01:03.8]} 24. Rf7+ {[%clk 0:02:50.1]} 24... Ke8 {[%clk 0:01:02.8]}
25. Rh7 {[%clk 0:02:50.2]} 25... Ne4+ {[%clk 0:01:01.8]} 26. Ke2 {[%clk
0:02:50.7]} 26... Bf8 {[%clk 0:00:59.2]} 27. Nd4 {[%clk 0:02:51.2]} 27... Ng5
{[%clk 0:00:49.5]} 28. Ra7 {[%clk 0:02:49.5]} 28... Bc5 {[%clk 0:00:45.1]} 29.
Rxa5 {[%clk 0:02:47.6]} 29... Bxd4 {[%clk 0:00:34.1]} 30. exd4 {[%clk
0:02:48.5]} 30... Rc7 {[%clk 0:00:33.4]} 31. c3 {[%clk 0:02:48.4]} 31... Ne4
{[%clk 0:00:32]} 32. Ra8+ {[%clk 0:02:47.7]} 32... Ke7 {[%clk 0:00:31.6]} 33.
Rh8 {[%clk 0:02:48.4]} 33... Rd7 {[%clk 0:00:21.7]} 34. Rh7+ {[%clk 0:02:47.9]}
34... Kd8 {[%clk 0:00:22.2]} 35. Rxd7+ {[%clk 0:02:48.7]} 35... Kxd7 {[%clk
0:00:23.1]} 36. Bc2 {[%clk 0:02:49.4]} 36... Ng3+ {[%clk 0:00:22.4]} 37. Kf3
{[%clk 0:02:49.5]} 37... Nf1 {[%clk 0:00:22.9]} 38. Bxf5+ {[%clk 0:02:49.6]}
38... Kc6 {[%clk 0:00:21.5]} 39. Kf2 {[%clk 0:02:50.2]} 39... Nd2 {[%clk
0:00:21]} 40. Bd3 {[%clk 0:02:50.9]} 40... Kd5 {[%clk 0:00:20.1]} 41. Ke2 {[%clk
0:02:51.3]} 1-0

[Event "Early-Titled-Tuesday-Blitz-February-06-2024"]
[Site "Chess.com"]
[Date "2024.02.06"]
[Round "1"]
[White "NovakRatko"]
[Black "maciek_92"]
[Result "0-1"]
[WhiteElo "2439"]
[BlackElo "2802"]
[TimeControl "180+1"]
[EndTime "8:04:56 PST"]
[Termination "maciek_92 won by resignation"]

1. d4 {[%clk 0:02:46.2]} 1... d5 {[%clk 0:02:57.3]} 2. c4 {[%clk 0:02:46.4]}
2... e6 {[%clk 0:02:57.6]} 3. cxd5 {[%clk 0:02:47]} 3... exd5 {[%clk 0:02:57.8]}
4. Nc3 {[%clk 0:02:47.9]} 4... Nf6 {[%clk 0:02:58]} 5. Bg5 {[%clk 0:02:47.7]}
5... c6 {[%clk 0:02:58.6]} 6. f3 {[%clk 0:02:47.5]} 6... Be6 {[%clk 0:02:56.8]}
7. e4 {[%clk 0:02:47.5]} 7... dxe4 {[%clk 0:02:52.6]} 8. fxe4 {[%clk 0:02:48.4]}
8... h6 {[%clk 0:02:48.9]} 9. Bh4 {[%clk 0:02:46.7]} 9... Nbd7 {[%clk
0:02:44.9]} 10. Nf3 {[%clk 0:02:39]} 10... Qa5 {[%clk 0:02:40.1]} 11. Qd2 {[%clk
0:02:35.2]} 11... Bb4 {[%clk 0:02:38.7]} 12. Bd3 {[%clk 0:02:35.1]} 12... g5
{[%clk 0:02:09.3]} 13. Bg3 {[%clk 0:02:29.2]} 13... Nh5 {[%clk 0:01:59.6]} 14.
Be5 {[%clk 0:02:22.2]} 14... Nxe5 {[%clk 0:01:56.6]} 15. Nxe5 {[%clk 0:02:21.8]}
15... Rd8 {[%clk 0:01:52.2]} 16. O-O {[%clk 0:02:18.6]} 16... Rxd4 {[%clk
0:01:35.5]} 17. Nxf7 {[%clk 0:02:18.1]} 17... Bxf7 {[%clk 0:01:20.9]} 18. Rxf7
{[%clk 0:02:12.5]} 18... Kxf7 {[%clk 0:01:20]} 19. Qf2+ {[%clk 0:01:57.2]} 19...
Nf4 {[%clk 0:01:15.9]} 20. Bc2 {[%clk 0:01:41.5]} 20... Bc5 {[%clk 0:01:09.3]}
21. Kh1 {[%clk 0:01:40.4]} 21... Rd1+ {[%clk 0:01:08.9]} 22. Nxd1 {[%clk
0:01:38.4]} 22... Bxf2 {[%clk 0:01:09.4]} 23. Nxf2 {[%clk 0:01:39.3]} 23... Qd2
{[%clk 0:01:09.6]} 24. Bb3+ {[%clk 0:01:38.8]} 24... Kg7 {[%clk 0:01:10.2]} 25.
Rf1 {[%clk 0:01:37.1]} 25... Rf8 {[%clk 0:01:02.7]} 26. g3 {[%clk 0:01:21.1]}
0-1

[Event "Early-Titled-Tuesday-Blitz-February-06-2024"]
[Site "Chess.com"]
[Date "2024.02.06"]
[Round "1"]
[White "ActorXu"]
[Black "HeroWilczek"]
[Result "1-0"]
[WhiteElo "2870"]
[BlackElo "2474"]
[TimeControl "180+1"]
[EndTime "8:05:00 PST"]
[Termination "ActorXu won by resignation"]

1. e4 {[%clk 0:03:00.9]} 1... c6 {[%clk 0:03:00.1]} 2. d4 {[%clk 0:03:00.7]}
2... d5 {[%clk 0:03:00.5]} 3. exd5 {[%clk 0:03:00.7]} 3... cxd5 {[%clk
0:03:01.4]} 4. Nf3 {[%clk 0:03:00.2]} 4... Nc6 {[%clk 0:02:59.2]} 5. Ne5 {[%clk
0:02:59.8]} 5... Nxe5 {[%clk 0:02:57.2]} 6. dxe5 {[%clk 0:02:59.4]} 6... e6
{[%clk 0:02:57.4]} 7. Nd2 {[%clk 0:02:58.9]} 7... Bc5 {[%clk 0:02:57.7]} 8. Qg4
{[%clk 0:02:56.4]} 8... g6 {[%clk 0:02:51.5]} 9. Bd3 {[%clk 0:02:54.2]} 9... Ne7
{[%clk 0:02:51]} 10. Nb3 {[%clk 0:02:52]} 10... h5 {[%clk 0:02:43.2]} 11. Qh4
{[%clk 0:02:47.5]} 11... Qc7 {[%clk 0:02:27.1]} 12. Nxc5 {[%clk 0:01:23.3]}
12... Qxc5 {[%clk 0:02:25.3]} 13. O-O {[%clk 0:01:24]} 13... Bd7 {[%clk
0:02:11.6]} 14. Be3 {[%clk 0:01:20.8]} 14... Qc7 {[%clk 0:02:07.2]} 15. f4
{[%clk 0:01:17.4]} 15... Qd8 {[%clk 0:01:53.9]} 16. Bc5 {[%clk 0:01:15.9]} 16...
Nf5 {[%clk 0:01:51.4]} 17. Qf2 {[%clk 0:01:15.9]} 17... b6 {[%clk 0:01:47.2]}
18. Ba3 {[%clk 0:01:14.9]} 18... h4 {[%clk 0:01:43.1]} 19. Bxf5 {[%clk
0:01:14.7]} 19... gxf5 {[%clk 0:01:39.2]} 20. Rfd1 {[%clk 0:01:14.5]} 20... Qc7
{[%clk 0:01:38.3]} 21. Rac1 {[%clk 0:01:12.4]} 21... Bc6 {[%clk 0:01:20.2]} 22.
c4 {[%clk 0:01:11.4]} 22... Qd7 {[%clk 0:01:19.5]} 23. cxd5 {[%clk 0:01:09.5]}
23... Bxd5 {[%clk 0:01:20.4]} 24. Rd2 {[%clk 0:01:08.4]} 24... Rg8 {[%clk
0:01:16.5]} 25. Qxh4 {[%clk 0:01:06.1]} 25... Rc8 {[%clk 0:01:14]} 26. Rxc8+
{[%clk 0:01:05.1]} 1-0